bitfinex/quotes_SOLUSD_20260211
["timestamp","ask_amount","ask_price","bid_price","bid_amount"]
[1770822284362,6.5442496,79.842,79.706,319.92572702]
[1770822284363,0.62861741,79.843,79.8,20.16310138]
[1770822284660,13.15077254,79.859,79.811,0.63647001]
[1770822284843,20.16310138,79.84,79.793,31.33083445]
[1770822285046,20.16310138,79.84,79.755,50.15329658]
[1770822285047,20.16310138,79.82,79.782,41.56]
[1770822285345,0.62861741,79.799,79.765,12.53672652]
[1770822285545,0.62861741,79.779,79.731,12.54217305]
[1770822285749,20.16310138,79.79,79.75,20.16310138]
[1770822285944,20.16310138,79.78,79.74,20.16310138]
[1770822286641,20.16310138,79.77,79.743,12.54017084]
[1770822287058,20.16310138,79.77,79.73,20.16310138]
[1770822287535,20.16310138,79.78,79.74,20.16310138]
[1770822288235,20.79171879,79.78,79.74,20.16310138]
[1770822288441,0.62861741,79.835,79.77,20.79957139]
[1770822288662,20.16310138,79.83,79.79,20.16310138]
[1770822289041,13.15451375,79.835,79.79,20.16310138]
[1770822289239,12.52599143,79.834,79.8,20.16310138]
[1770822289456,0.62861741,79.809,79.761,12.53745564]
[1770822289654,0.62861741,79.789,79.755,12.53837477]
[1770822290160,0.62861741,79.789,79.75,20.16310138]
[1770822290361,20.16310138,79.8,79.76,20.16310138]
[1770822290545,20.16310138,79.78,79.741,43.89210067]
[1770822290856,0.5607798,79.789,79.741,43.89210067]
[1770822291161,20.72388118,79.75,79.702,0.59197661]
[1770822291359,20.16310138,79.74,79.7,20.16310138]
[1770822291558,43.86074838,79.798,79.73,20.16310138]
[1770822291744,20.16310138,79.77,79.721,0.59197661]
[1770822291939,0.5607798,79.769,79.72,20.16310138]
[1770822292144,20.16310138,79.77,79.73,20.16310138]
[1770822292444,0.5607798,79.839,79.76,20.16310138]
[1770822292642,50.09891195,79.843,79.712,4.61729252]
[1770822292643,20.16310138,79.81,79.77,20.16310138]
[1770822292953,20.16310138,79.81,79.771,12.53588396]
[1770822293164,12.52991517,79.809,79.771,12.53588396]
[1770822293341,12.52991517,79.809,79.761,63.95545317]
[1770822293342,20.16310138,79.8,79.765,41.5]
[1770822293542,0.5607798,79.817,79.78,20.16310138]
[1770822293761,0.5607798,79.828,79.79,20.16310138]
[1770822293960,0.5607798,79.828,79.781,41.52]
[1770822294156,20.16310138,79.82,79.781,41.52]
[1770822294360,20.16310138,79.82,79.78,20.16310138]
[1770822294857,0.5607798,79.822,79.79,20.16310138]
[1770822295163,20.16310138,79.85,79.81,20.16310138]
[1770822295644,20.16310138,79.84,79.8,20.16310138]
[1770822295956,20.16310138,79.82,79.782,12.53415557]
[1770822296145,20.16310138,79.81,79.782,12.53415557]
[1770822296346,0.5607798,79.819,79.782,12.53415557]
[1770822296661,0.5607798,79.819,79.767,0.59197661]
[1770822296662,20.16310138,79.8,79.778,41.5]
[1770822296863,144.01823394,79.851,79.747,0.59197661]
[1770822296864,20.16310138,79.79,79.765,41.52]
[1770822297180,0.5607798,79.797,79.762,12.53720481]
[1770822297645,0.5607798,79.789,79.751,12.53902772]
[1770822297847,12.53164239,79.798,79.76,20.16310138]
[1770822298058,20.16310138,79.78,79.74,20.16310138]
[1770822298256,0.5607798,79.779,79.741,41.52]
[1770822298460,20.16310138,79.79,79.75,20.16310138]
[1770822298841,12.53164239,79.798,79.752,0.59197661]
[1770822299039,12.53164239,79.798,79.713,50.17947536]
[1770822299040,20.16310138,79.78,79.742,12.54044292]
[1770822299263,12.53164239,79.798,79.76,20.16310138]
[1770822299761,20.16310138,79.78,79.748,41.52]
[1770822300145,20.16310138,79.77,79.737,12.54113599]
[1770822300345,20.16310138,79.78,79.74,20.16310138]
[1770822300549,20.16310138,79.79,79.75,20.75507799]
[1770822300851,12.53305593,79.789,79.752,12.53887049]
[1770822301042,5.36086188,79.829,79.752,12.53887049]
[1770822301043,0.5607798,79.812,79.77,20.16310138]
[1770822301245,0.5607798,79.812,79.752,144.19701071]
[1770822301246,20.16310138,79.84,79.801,0.59197661]
[1770822301443,20.16310138,79.84,79.802,41.52]
[1770822301665,20.16310138,79.86,79.82,20.16310138]
[1770822301965,20.16310138,79.84,79.804,30.36]
[1770822302156,20.16310138,79.86,79.82,20.16310138]
[1770822302360,20.72388118,79.84,79.8,20.16310138]
[1770822302852,20.72388118,79.87,79.821,43.84811014]
[1770822303054,13.08128212,79.869,79.822,0.59197661]
[1770822303254,0.5607798,79.829,79.77,20.75507799]
[1770822303479,0.5607798,79.809,79.747,0.59197661]
[1770822303764,20.16310138,79.8,79.757,41.5]
[1770822303953,0.5607798,79.809,79.76,20.16310138]
[1770822304155,0.5607798,79.819,79.77,20.16310138]
[1770822304353,0.5607798,79.819,79.766,0.59197661]
[1770822304354,20.16310138,79.81,79.771,41.5]
[1770822304546,20.16310138,79.8,79.767,41.5]
[1770822304747,0.5607798,79.809,79.766,0.59197661]
[1770822304946,12.53007217,79.808,79.767,43.87779407]
[1770822305164,12.52842818,79.819,79.78,20.16310138]
[1770822305564,20.16310138,79.81,79.771,0.59197661]
[1770822306151,0.5607798,79.813,79.769,0.59197661]
[1770822306446,20.16310138,79.83,79.791,0.59197661]
[1770822306653,35.38,79.837,79.78,20.16310138]
[1770822306654,20.16310138,79.82,79.78,20.16310138]
[1770822306867,20.16310138,79.81,79.771,0.59197661]
[1770822307171,20.16310138,79.81,79.711,5.36086188]
[1770822307172,20.16310138,79.8,79.766,12.53653536]
[1770822307353,0.5607798,79.799,79.766,12.53653536]
[1770822307555,20.16310138,79.79,79.766,12.53653536]
[1770822307872,0.5607798,79.799,79.766,12.53653536]
[1770822308278,20.16310138,79.78,79.752,12.53887049]
[1770822308488,0.5607798,79.801,79.752,43.88604673]
[1770822308651,0.5607798,79.801,79.725,50.17232178]
[1770822308652,20.16310138,79.76,79.72,20.16310138]
[1770822308848,20.16310138,79.76,79.705,0.59197661]
[1770822308849,0.5607798,79.782,79.75,20.16310138]
[1770822309152,20.16310138,79.81,79.772,0.59197661]
[1770822309386,47.88678978,79.829,79.781,0.59197661]
[1770822309552,20.16310138,79.82,79.773,41.52]
[1770822309779,20.16310138,79.82,79.78,20.16310138]
[1770822309978,20.16310138,79.82,79.781,0.59197661]
[1770822310184,20.16310138,79.8,79.768,0.59197661]
[1770822310502,20.16310138,79.81,79.769,41.52]
[1770822310906,79.20372973,79.829,79.769,41.52]
[1770822311089,0.5607798,79.814,79.77,32.69914249]
[1770822311295,0.5607798,79.809,79.77,12.53604111]
[1770822311484,32.69134672,79.82,79.78,20.16310138]
[1770822311685,12.5269329,79.828,79.781,0.59197661]
[1770822311879,12.5269329,79.828,79.783,0.59197661]
[1770822312117,12.5269329,79.828,79.791,0.59197661]
[1770822312291,20.16310138,79.85,79.811,0.59197661]
[1770822312485,20.16310138,79.86,79.82,20.16310138]
[1770822312805,0.5607798,79.829,79.77,43.8761439]
[1770822312994,20.19144745,79.8,79.77,12.53604111]
[1770822313197,20.19144745,79.79,79.761,12.53745564]
[1770822313624,0.5607798,79.799,79.761,12.53745564]
[1770822313911,20.19144745,79.79,79.756,0.59197661]
[1770822314125,20.19144745,79.78,79.746,12.5398139]
[1770822314291,206.69698219,79.827,79.746,12.5398139]
[1770822314292,0.5607798,79.823,79.77,20.19144745]
[1770822314496,20.19144745,79.8,79.753,0.59197661]
[1770822314795,20.19144745,79.79,79.753,0.59197661]
[1770822315184,12.53007217,79.808,79.761,0.59197661]
[1770822315387,0.5607798,79.86,79.78,20.19144745]
[1770822315587,20.19144745,79.85,79.81,20.78342406]
[1770822315787,20.19144745,79.85,79.754,307.1946234]
[1770822315788,20.19144745,79.87,79.831,0.59197661]
[1770822315982,11.51971855,79.874,79.814,0.59197661]
[1770822315983,20.19144745,79.85,79.814,0.59197661]
[1770822316209,20.19144745,79.86,79.811,0.59197661]
[1770822316425,20.19144745,79.87,79.83,20.19144745]
[1770822316588,0.5607798,79.849,79.814,41.54]
[1770822316787,11.51971855,79.874,79.831,0.59197661]
[1770822316988,20.19144745,79.87,79.831,0.59197661]
[1770822317188,0.5607798,79.883,79.841,0.59197661]
[1770822317419,6.54529626,79.902,79.841,0.59197661]
[1770822317606,20.19144745,79.85,79.821,0.59197661]
[1770822317792,20.19144745,79.83,79.79,20.19144745]
[1770822318118,20.19144745,79.81,79.785,41.52]
[1770822318318,20.19144745,79.79,79.744,0.59197661]
[1770822318495,20.19144745,79.8,79.76,20.19144745]
[1770822318685,20.19144745,79.79,79.761,0.59197661]
[1770822318921,20.19144745,79.79,79.751,0.59197661]
[1770822319092,20.19144745,79.82,79.781,0.59197661]
[1770822319298,20.19144745,79.82,79.771,43.87559387]
[1770822319299,20.19144745,79.81,79.771,54.05588396]
[1770822319501,20.19144745,79.8,79.771,54.05588396]
[1770822319700,20.19144745,79.8,79.771,41.52]
[1770822319996,20.19144745,79.81,79.771,41.52]
[1770822320217,20.19144745,79.8,79.771,41.52]
[1770822320419,20.19144745,79.82,79.772,0.56108973]
[1770822320717,20.19144745,79.81,79.772,0.56108973]
[1770822321054,20.19144745,79.83,79.79,20.19144745]
[1770822321225,20.19144745,79.82,79.782,43.8695445]
[1770822321594,20.19144745,79.83,79.791,0.56108973]
[1770822321793,20.19144745,79.82,79.782,43.8695445]
[1770822322103,20.19144745,79.83,79.79,20.19144745]
[1770822322296,20.19144745,79.81,79.782,43.8695445]
[1770822322602,0.56576595,79.789,79.741,41.58]
[1770822322797,20.19144745,79.76,79.728,41.58]
[1770822323198,20.19144745,79.76,79.721,43.90311209]
[1770822323397,20.19144745,79.76,79.722,41.58]
[1770822323700,20.19144745,79.75,79.721,43.90311209]
[1770822324096,0.56576595,79.766,79.721,43.90311209]
[1770822324392,20.7572134,79.78,79.731,0.56108973]
[1770822324591,20.7572134,79.78,79.74,20.19144745]
[1770822324818,20.19144745,79.78,79.74,20.19144745]
[1770822325241,0.56576595,79.794,79.76,20.19144745]
[1770822325400,0.56576595,79.794,79.75,0.56108973]
[1770822325401,12.53148535,79.799,79.761,41.58]
[1770822325601,20.19144745,79.79,79.75,0.56108973]
[1770822325803,20.19144745,79.77,79.742,12.54044292]
[1770822326104,20.19144745,79.77,79.728,42.14108973]
[1770822326307,20.19144745,79.77,79.73,20.19144745]
[1770822326527,20.19144745,79.76,79.728,41.58]
[1770822326716,20.19144745,79.76,79.72,20.19144745]
[1770822326920,20.19144745,79.78,79.731,0.56095814]
[1770822327129,20.19144745,79.77,79.731,0.56095814]
[1770822327421,0.55326038,79.779,79.732,85.49705513]
[1770822327722,31.33419296,79.786,79.732,85.49705513]
[1770822327723,20.19144745,79.79,79.75,20.19144745]
[1770822327930,20.19144745,79.78,79.741,0.56095814]
[1770822328709,20.19144745,79.79,79.741,0.56095814]
[1770822328916,20.19144745,79.78,79.742,41.62]
[1770822329438,20.19144745,79.79,79.751,0.56095814]
[1770822329617,20.19144745,79.83,79.781,0.56095814]
[1770822329946,20.19144745,79.79,79.744,0.56095814]
[1770822330225,20.19144745,79.8,79.76,20.19144745]
[1770822330532,20.19144745,79.79,79.761,41.64]
[1770822330740,20.19144745,79.79,79.762,41.64]
[1770822331432,0.55326038,79.795,79.762,41.64]
[1770822331634,12.53052639,79.806,79.763,43.87999448]
[1770822331805,20.19144745,79.79,79.763,12.53714128]
[1770822332003,20.19144745,79.82,79.78,20.19144745]
[1770822332519,20.19144745,79.83,79.781,0.56095814]
[1770822332718,0.55326038,79.835,79.8,20.19144745]
[1770822332924,0.55326038,79.835,79.801,41.64]
[1770822333121,20.19144745,79.83,79.79,20.75240559]
[1770822333323,20.19144745,79.83,79.791,41.64]
[1770822333528,20.19144745,79.82,79.776,0.56095814]
[1770822333827,13.08003636,79.829,79.764,12.5369841]
[1770822333828,20.19144745,79.79,79.764,12.5369841]
[1770822334032,20.19144745,79.78,79.75,0.56095814]
[1770822334210,20.19144745,79.78,79.754,12.53855605]
[1770822334743,20.19144745,79.79,79.754,12.53855605]
[1770822335335,20.19144745,79.79,79.752,0.56095814]
[1770822335909,20.19144745,79.79,79.753,43.88549646]
[1770822336109,20.19144745,79.79,79.755,0.56095814]
[1770822336305,0.55326038,79.817,79.761,0.56095814]
[1770822336510,20.19144745,79.79,79.754,0.56095814]
[1770822336810,20.19144745,79.79,79.755,41.64]
[1770822337004,43.84811014,79.821,79.761,0.56095814]
[1770822337005,20.19144745,79.8,79.761,0.56095814]
[1770822337228,37.74,79.859,79.753,43.88549646]
[1770822337229,12.52552074,79.837,79.781,0.56095814]
[1770822337535,12.52552074,79.837,79.78,20.19144745]
[1770822337536,0.55326038,79.866,79.811,0.56095814]
[1770822337709,0.55326038,79.866,79.782,46.25729252]
[1770822337710,6.54636336,79.892,79.841,0.56095814]
[1770822337912,20.39144745,79.89,79.85,20.19144745]
[1770822338132,20.39144745,79.89,79.843,0.56095814]
[1770822338133,20.19144745,79.87,79.843,0.56095814]
[1770822338442,20.19144745,79.87,79.811,50.11819336]
[1770822338443,20.19144745,79.85,79.838,41.64]
[1770822338734,20.19144745,79.85,79.838,41.35574488]
[1770822339432,20.19144745,79.85,79.839,41.64]
[1770822339612,20.19144745,79.85,79.834,41.66]
[1770822340230,20.19144745,79.84,79.791,0.56694683]
[1770822340431,20.19144745,79.81,79.792,41.66]
[1770822340629,20.19144745,79.82,79.792,41.66]
[1770822341131,4.61729252,79.867,79.771,43.87559387]
[1770822341132,20.19144745,79.83,79.794,0.56694683]
[1770822341430,20.19144745,79.83,79.796,0.56694683]
[1770822341814,20.19144745,79.84,79.801,0.56694683]
[1770822342019,20.19144745,79.85,79.813,0.56694683]
[1770822342415,20.19144745,79.86,79.821,0.56694683]
[1770822342733,20.19144745,79.85,79.822,41.66]
[1770822342928,20.19144745,79.86,79.823,0.56694683]
[1770822343231,20.19144745,79.86,79.831,0.56694683]
[1770822343609,5.56086188,79.91,79.831,0.56694683]
[1770822343610,20.19144745,79.87,79.831,0.56694683]
[1770822343944,20.19144745,79.87,79.822,41.66]
[1770822343945,1e-08,79.89,79.861,0.56694683]
[1770822344112,12.51127703,79.928,79.881,0.56095814]
[1770822344312,20.19144745,79.9,79.867,0.56095814]
[1770822344512,20.19144745,79.88,79.841,12.52489322]
[1770822344741,20.19144745,79.88,79.804,50.12228029]
[1770822344742,20.19144745,79.85,79.811,0.5624636]
[1770822345046,20.19144745,79.85,79.813,0.5624636]
[1770822345333,20.19144745,79.88,79.841,0.5624636]
[1770822345544,20.19144745,79.88,79.812,46.27729252]
[1770822345545,20.19144745,79.9,79.861,0.5624636]
[1770822345714,20.19144745,79.88,79.862,41.66]
[1770822345913,20.19144745,79.88,79.848,0.5624636]
[1770822346123,12.51740567,79.889,79.85,33.27739257]
[1770822346434,162.64434684,79.929,79.85,33.27739257]
[1770822346435,20.19144745,79.91,79.871,0.5624636]
[1770822346647,20.19144745,79.9,79.853,0.5624636]
[1770822346821,20.19144745,79.88,79.853,0.5624636]
[1770822347020,20.19144745,79.88,79.854,41.64]
[1770822347917,20.19144745,79.87,79.842,12.52472097]
[1770822348136,20.19144745,79.87,79.81,50.11895793]
[1770822348137,20.19144745,79.85,79.811,12.52960118]
[1770822348340,20.19144745,79.85,79.813,0.5624636]
[1770822348521,20.19144745,79.85,79.812,41.66]
[1770822348522,20.19144745,79.85,79.82,0.5624636]
[1770822348722,20.19144745,79.86,79.821,0.5624636]
[1770822349144,43.80694903,79.896,79.831,0.5624636]
[1770822349327,43.80694903,79.896,79.841,0.5624636]
[1770822349328,20.19144745,79.87,79.841,0.5624636]
[1770822349645,20.19144745,79.86,79.842,41.66]
[1770822349937,20.19144745,79.86,79.827,0.5624636]
[1770822350137,20.19144745,79.86,79.83,20.19144745]
[1770822350437,20.19144745,79.86,79.831,0.5624636]
[1770822350839,20.19144745,79.85,79.828,41.66]
[1770822351843,20.19144745,79.85,79.775,0.5624636]
[1770822351844,20.19144745,79.84,79.775,0.5624636]
[1770822352041,4.61729252,79.847,79.776,41.66]
[1770822352042,20.19144745,79.8,79.776,41.66]
[1770822352344,20.19144745,79.8,79.777,12.53494114]
[1770822352535,20.19144745,79.81,79.777,43.87229401]
[1770822352735,20.19144745,79.83,79.781,0.5624636]
[1770822352940,20.19144745,79.82,79.781,0.5624636]
[1770822353241,20.19144745,79.82,79.782,41.68]
[1770822353445,20.19144745,79.84,79.801,0.5624636]
[1770822353650,20.19144745,79.85,79.811,0.5624636]
[1770822353850,20.19144745,79.83,79.795,0.5624636]
[1770822354149,20.19144745,79.83,79.796,12.53195648]
[1770822354342,20.19144745,79.83,79.796,54.21195648]
[1770822354545,20.19144745,79.83,79.797,41.68]
[1770822354848,20.19144745,79.85,79.811,0.5624636]
[1770822355044,20.19144745,79.84,79.8,20.19144745]
[1770822355237,20.19144745,79.84,79.799,0.5624636]
[1770822355439,20.19144745,79.85,79.811,0.5624636]
[1770822356248,50.04810419,79.924,79.841,0.5624636]
[1770822356249,20.19144745,79.88,79.841,0.5624636]
[1770822356430,20.19144745,79.91,79.871,0.5624636]
[1770822356630,12.51251251,79.92,79.881,0.5624636]
[1770822356631,32.70395996,79.92,79.881,0.5624636]
[1770822356839,20.19144745,79.93,79.89,20.19144745]
[1770822357038,20.19144745,79.93,79.872,41.68]
[1770822357039,20.19144745,79.94,79.901,0.5624636]
[1770822357239,20.19144745,79.94,79.902,41.68]
[1770822357444,20.19144745,79.94,79.903,0.5624636]
[1770822357745,20.19144745,79.98,79.931,0.5624636]
[1770822357955,20.19144745,79.98,79.94,20.19144745]
[1770822358152,20.19144745,79.97,79.934,12.51032101]
[1770822358449,20.19144745,79.97,79.935,0.5624636]
[1770822358747,20.19144745,79.97,79.934,12.51032101]
[1770822358748,20.19144745,79.99,79.95,20.19144745]
[1770822358952,20.19144745,79.97,79.95,41.68]
[1770822359249,49.97438812,80.041,79.961,0.5624636]
[1770822359562,20.19144745,79.99,79.955,0.5624636]
[1770822359742,20.19144745,79.98,79.956,41.66]
[1770822360055,20.19144745,79.98,79.957,41.66]
[1770822360252,12.50484562,79.969,79.911,0.5624636]
[1770822360433,20.19144745,79.94,79.913,0.5624636]
[1770822360632,20.19144745,79.94,79.9,20.19144745]
[1770822360633,20.19144745,79.93,79.914,41.66]
[1770822360933,20.19144745,79.94,79.913,41.66]
[1770822361128,20.19144745,79.93,79.88,31.29674413]
[1770822361333,20.19144745,79.93,79.89,20.19144745]
[1770822361662,20.19144745,79.93,79.905,0.5624636]
[1770822361840,4.61729252,79.974,79.907,0.5624636]
[1770822362036,20.19144745,79.93,79.906,41.66]
[1770822362230,12.5014064,79.991,79.911,0.5624636]
[1770822362544,20.19144745,79.94,79.911,0.5624636]
[1770822362856,20.19144745,79.92,79.902,41.66]
[1770822363043,20.19144745,79.93,79.893,0.5624636]
[1770822363233,20.19144745,79.92,79.894,41.66]
[1770822363561,20.19144745,79.92,79.875,43.81846634]
[1770822363562,20.19144745,79.93,79.895,0.5624636]
[1770822363751,43.75492242,79.991,79.921,0.5624636]
[1770822363932,20.19144745,79.98,79.931,0.5624636]
[1770822364129,20.19144745,79.96,79.923,12.51204284]
[1770822364348,20.19144745,79.95,79.922,41.66]
[1770822364851,20.19144745,79.94,79.907,12.51444122]
[1770822365048,20.19144745,79.94,79.905,12.51486139]
[1770822365437,43.77201149,79.96,79.622,46.59135239]
[1770822365438,20.19144745,79.93,79.888,0.5624636]
[1770822365636,20.19144745,79.92,79.889,41.66]
[1770822366135,31.26157675,79.971,79.902,12.51533128]
[1770822366341,20.19144745,79.95,79.911,0.5624636]
[1770822366550,20.19144745,79.92,79.838,50.10120522]
[1770822366855,2.97026867,79.964,79.91,20.19144745]
[1770822367037,6.53484895,80.04,79.95,20.19144745]
[1770822367236,0.54228012,80.06,80.03,20.19144745]
[1770822367446,0.54228012,80.049,79.952,5.36086188]
[1770822367656,0.54228012,80.039,80.01,20.19144745]
[1770822367838,20.19144745,80.03,79.996,23.4]
[1770822368035,20.19144745,80.03,79.927,20.06992862]
[1770822368036,0.54228012,80.029,79.997,23.4]
[1770822368236,20.19144745,80.02,79.998,41.64]
[1770822368432,20.73372757,80.02,79.98,20.19144745]
[1770822368651,0.54228012,79.999,79.944,43.78064644]
[1770822368844,0.54228012,79.999,79.95,20.19144745]
[1770822369044,43.73469285,80.028,79.951,41.64]
[1770822369045,0.54228012,79.989,79.951,41.64]
[1770822369539,0.54228012,79.979,79.952,41.62]
[1770822369864,0.54228012,79.969,79.946,41.62]
[1770822370046,0.54228012,79.969,79.93,20.19144745]
[1770822370233,0.54228012,79.959,79.92,31.28098879]
[1770822370437,0.54228012,79.959,79.921,41.64]
[1770822370657,0.54228012,79.959,79.922,41.64]
[1770822370937,12.505002,79.968,79.89,20.19144745]
[1770822370938,0.54228012,79.929,79.89,20.19144745]
[1770822371154,0.54228012,79.929,79.891,85.44969069]
[1770822371333,43.767507,79.968,79.853,50.09198142]
[1770822371334,0.54228012,79.919,79.87,20.19144745]
[1770822371539,0.54228012,79.919,79.837,50.10165827]
[1770822371540,0.54228012,79.919,79.88,20.19144745]
[1770822371734,0.54228012,79.889,79.83,43.84316672]
[1770822371947,0.54228012,79.889,79.84,20.19144745]
[1770822372140,0.54228012,79.889,79.828,100.21546324]
[1770822372344,0.54228012,79.839,79.782,62.67077786]
[1770822372553,0.54228012,79.854,79.82,20.19144745]
[1770822372756,0.54228012,79.854,79.821,41.66]
[1770822373059,20.73372757,79.85,79.821,41.66]
[1770822373586,0.54228012,79.85,79.821,41.66]
[1770822373968,0.54228012,79.894,79.83,20.19144745]
[1770822374258,0.54228012,79.849,79.811,12.52960118]
[1770822374462,20.19144745,79.86,79.82,20.19144745]
[1770822374639,0.54228012,79.879,79.84,20.19144745]
[1770822374844,20.16490847,79.85,79.811,43.85360413]
[1770822375071,0.54228012,79.849,79.812,41.68]
[1770822375365,0.54228012,79.865,79.83,20.16490847]
[1770822375950,20.70718859,79.86,79.831,41.68]
[1770822376143,0.54228012,79.86,79.832,41.68]
[1770822376343,0.54228012,79.875,79.84,20.16490847]
[1770822376562,0.54228012,79.909,79.87,20.16490847]
[1770822376778,0.54228012,79.938,79.9,20.16490847]
[1770822376949,0.54228012,79.949,79.91,20.16490847]
[1770822377140,0.54228012,79.939,79.89,20.16490847]
[1770822377447,0.54228012,79.899,79.884,32.16]
[1770822377651,0.54228012,79.899,79.885,31.61771988]
[1770822377866,0.54228012,79.899,79.886,41.68]
[1770822378545,0.51785313,79.932,79.89,20.16490847]
[1770822378747,20.16490847,79.93,79.89,20.16490847]
[1770822379167,20.16490847,79.91,79.877,12.51924834]
[1770822379359,0.51785313,79.899,79.847,43.83383219]
[1770822379561,0.51785313,79.889,79.85,20.16490847]
[1770822379866,0.51785313,79.927,79.851,41.7]
[1770822380059,20.16490847,79.88,79.851,41.7]
[1770822380245,20.16490847,79.88,79.84,20.16490847]
[1770822380246,0.51785313,79.949,79.84,20.16490847]
[1770822380450,0.49659504,79.879,79.842,12.52473635]
[1770822380651,50.04868527,79.923,79.842,12.52473635]
[1770822380652,0.49659504,79.894,79.86,20.16490847]
[1770822381147,20.16490847,79.89,79.843,0.47276144]
[1770822381355,0.49659504,79.927,79.88,20.16490847]
[1770822381566,20.16490847,79.92,79.881,41.7]
[1770822381757,0.49659504,79.909,79.881,41.7]
[1770822382660,20.16490847,79.92,79.882,12.51846473]
[1770822382970,20.16490847,79.91,79.871,43.82066081]
[1770822383271,0.49659504,79.929,79.881,41.72]
[1770822383462,20.66150351,79.91,79.881,41.72]
[1770822383662,0.49659504,79.909,79.881,41.72]
[1770822383868,20.66150351,79.89,79.865,12.5211294]
[1770822384057,0.49659504,79.89,79.865,12.5211294]
[1770822384257,43.78886261,79.929,79.865,12.5211294]
[1770822384258,0.49659504,79.899,79.865,12.5211294]
[1770822384653,43.78886261,79.929,79.842,12.52470703]
[1770822384654,0.49659504,79.879,79.842,12.52470703]
[1770822384853,20.16490847,79.87,79.842,12.52470703]
[1770822385177,20.16490847,79.86,79.82,32.69295327]
[1770822385372,0.49659504,79.859,79.82,12.5280448]
[1770822385573,20.16490847,79.85,79.819,12.52830109]
[1770822385763,0.49659504,79.849,79.819,12.52830109]
[1770822386153,20.16490847,79.84,79.819,12.52830109]
[1770822386356,0.49659504,79.849,79.819,12.52830109]
[1770822386558,0.49296347,79.863,79.82,20.16490847]
[1770822386762,20.16490847,79.85,79.812,43.85305467]
[1770822386963,0.49296347,79.859,79.82,20.16490847]
[1770822387359,0.49296347,79.893,79.84,20.16490847]
[1770822387556,20.16490847,79.89,79.841,41.76]
[1770822387874,20.65787194,79.89,79.841,41.76]
[1770822388077,34.68,79.922,79.812,256.85360594]
[1770822388078,20.16490847,79.85,79.812,12.52944419]
[1770822388280,4.61729252,79.888,79.81,12.72972644]
[1770822388281,20.16490847,79.84,79.81,12.72972644]
[1770822388777,20.16490847,79.82,79.81,0.2]
[1770822388986,0.49296347,79.819,79.771,12.53588396]
[1770822389154,0.49296347,79.819,79.778,31.33669843]
[1770822389352,20.16490847,79.81,79.778,31.33669843]
[1770822389952,0.49296347,79.819,79.778,31.33669843]
[1770822390157,20.16490847,79.81,79.778,31.33669843]
[1770822390561,20.16490847,79.8,79.773,12.53556967]
[1770822390765,0.49296347,79.831,79.774,0.45087088]
[1770822391059,20.16490847,79.81,79.773,43.87449386]
[1770822391881,20.16490847,79.8,79.773,43.87449386]
[1770822392079,20.16490847,79.8,79.773,12.53556967]
[1770822392389,0.49296347,79.799,79.773,12.53556967]
[1770822392605,20.16490847,79.79,79.751,31.34739443]
[1770822392761,20.16490847,79.79,79.65,56.42]
[1770822392762,0.49296347,79.759,79.727,12.54280231]
[1770822392963,20.65787194,79.75,79.727,12.54280231]
[1770822393273,20.06490847,79.76,79.727,12.54280231]
[1770822393474,20.16490847,79.74,79.716,31.36125274]
[1770822393676,20.65787194,79.73,79.713,12.0450052]
[1770822393878,20.16490847,79.72,79.693,41.84]
[1770822394077,20.16490847,79.72,79.694,43.91798629]
[1770822394278,26.82,79.753,79.69,0.1]
[1770822394279,20.16490847,79.7,79.69,0.1]
[1770822394864,20.16490847,79.72,79.69,0.1]
[1770822395059,20.16490847,79.7,79.69,0.1]
[1770822396098,20.16490847,79.7,79.669,41.86]
[1770822396284,20.16490847,79.69,79.669,41.86]
[1770822396669,20.16490847,79.7,79.669,41.86]
[1770822396862,20.16490847,79.69,79.669,41.86]
[1770822397080,20.16490847,79.69,79.65,20.16490847]
[1770822397081,20.16490847,79.68,79.654,12.80037544]
[1770822397288,20.16490847,79.68,79.654,0.2462089]
[1770822397489,20.16490847,79.7,79.666,0.5]
[1770822397684,20.16490847,79.69,79.67,12.65177607]
[1770822397870,12.54264499,79.728,79.671,0.5]
[1770822398075,20.16490847,79.71,79.671,0.5]
[1770822398578,20.16490847,79.7,79.67,0.1]
[1770822398770,20.16490847,79.69,79.67,0.1]
[1770822398973,12.54878339,79.689,79.67,0.1]
[1770822399165,20.16490847,79.69,79.67,0.1]
[1770822399377,5.36086188,79.736,79.67,0.1]
[1770822399378,20.16490847,79.7,79.67,0.1]
[1770822399571,20.16490847,79.69,79.67,0.1]
[1770822400088,20.16490847,79.68,79.67,0.1]
[1770822400485,20.16490847,79.7,79.67,0.1]
[1770822400795,6.55877182,79.723,79.681,0.5]
[1770822400961,12.54248767,79.729,79.691,0.5]
[1770822401166,20.16490847,79.7,79.67,0.1]
[1770822401390,20.16490847,79.66,79.629,0.5]
[1770822401567,37.6,79.771,79.629,0.5]